bitfinex-derivatives/quotes_ETHF0:USTF0_20250320
["timestamp","ask_amount","ask_price","bid_price","bid_amount"]
[1742473905254,3.08562,1993.0,1992.8,2.33755]
[1742473905445,2.42462,1993.0,1992.9,1.3336]
[1742473906049,2.42462,1993.0,1992.9,2.33754]
[1742473906251,1.01137502,1993.1,1993.0,1.00389]
[1742473906757,1.01137502,1993.1,1993.0,2.29479]
[1742473907052,1.01137502,1993.1,1993.0,3.70769]
[1742473908158,0.00752502,1993.1,1993.0,3.70769]
[1742473908351,0.00752502,1993.1,1993.0,6.99369]
[1742473910360,1.01136502,1993.1,1993.0,6.99369]
[1742473910860,0.00752502,1993.1,1993.0,6.99369]
[1742473912653,1.01136502,1993.1,1993.0,6.99369]
[1742473913154,0.00752502,1993.1,1993.0,6.99369]
[1742473915562,0.7021,1993.6,1993.5,1.00364]
[1742473915761,2.0351,1993.6,1993.4,3.2078]
[1742473915955,1.00364,1993.5,1993.4,4.21144]
[1742473916150,2.33664,1993.5,1993.4,45.65954]
[1742473916354,2.33664,1993.5,1993.4,4.85954]
[1742473917764,1.333,1993.5,1993.4,4.85954]
[1742473918859,1.71322502,1993.6,1993.5,1.00364]
[1742473919063,2.36512502,1993.6,1993.5,1.00364]
[1742473919862,1.36152502,1993.6,1993.5,1.00364]
[1742473920166,1.66432,1993.8,1993.7,1.00354]
[1742473920362,1.66432,1993.8,1993.6,4.21135]
[1742473920565,1.00354,1993.7,1993.6,4.21135]
[1742473920969,1.00364,1993.5,1993.4,51.99838]
[1742473921165,1.00364,1993.5,1993.4,50.2319]
[1742473921364,1.00364,1993.5,1993.4,49.5838]
[1742473921869,1.67584,1993.5,1993.4,49.5838]
[1742473922266,1.67584,1993.5,1993.4,50.58749]
[1742473922768,1.67584,1993.5,1993.4,49.5838]
[1742473923357,0.6722,1993.5,1993.4,50.58749]
[1742473923565,1.30481166,1993.6,1993.5,1.00364]
[1742473923764,1.30481166,1993.6,1993.5,1.69044]
[1742473924168,2.30840166,1993.6,1993.5,1.69044]
[1742473925066,2.30840166,1993.6,1993.5,0.6868]
[1742473925358,1.30481166,1993.6,1993.5,1.69044]
[1742473926869,2.30840166,1993.6,1993.5,1.69044]
[1742473927869,2.30840166,1993.6,1993.5,3.03764]
[1742473928472,2.30840166,1993.6,1993.5,2.034]
[1742473928771,2.30840166,1993.6,1993.5,3.03764]
[1742473930071,2.30840166,1993.6,1993.5,2.034]
[1742473930266,2.30840166,1993.6,1993.4,49.5838]
[1742473930267,1.00364,1993.5,1993.4,49.5838]
[1742473930469,2.33844,1993.5,1993.4,50.901]
[1742473931266,1.3348,1993.5,1993.4,51.90469]
[1742473931471,1.00864166,1993.6,1993.4,50.901]
[1742473931668,1.00864166,1993.6,1993.5,1.3172]
[1742473932572,1.00864166,1993.6,1993.5,2.32084]
[1742473933272,1.00864166,1993.6,1993.5,1.3172]
[1742473933878,1.00864166,1993.6,1993.4,49.5838]
[1742473933879,1.00364,1993.5,1993.4,49.5838]
[1742473934079,2.35954,1993.5,1993.4,44.98756]
[1742473934280,2.35954,1993.5,1993.3,0.00752502]
[1742473934281,1.00369,1993.4,1993.3,0.00752502]
[1742473934470,3.70059,1993.4,1993.3,0.00752502]
[1742473936675,3.70059,1993.4,1993.3,1.35502502]
[1742473937077,1.3559,1993.4,1993.3,3.70046502]
[1742473937381,1.32971166,1993.6,1993.5,1.00364]
[1742473937573,1.41091166,1993.6,1993.5,4.21144]
[1742473937767,1.3891,1993.9,1993.8,1.00349]
[1742473937974,1.3891,1993.9,1993.7,3.2078]
[1742473937975,2.795,1993.9,1993.7,3.2078]
[1742473938180,3.79844,1993.9,1993.8,1.3475]
[1742473938481,2.39254,1993.9,1993.8,1.3475]
[1742473939782,2.39254,1993.9,1993.8,2.0051]
[1742473941272,1.3891,1993.9,1993.8,6.21639]
[1742473941478,1.00339,1994.0,1993.9,1.0034]
[1742473941785,1.00339,1994.0,1993.9,4.6476]
[1742473943676,1.00339,1994.0,1993.9,3.273]
[1742473944379,1.00339,1994.0,1993.9,4.6702]
[1742473944683,1.00344,1993.9,1993.8,3.2078]
[1742473944873,1.00344,1993.9,1993.7,3.272]
[1742473944874,1.00349,1993.8,1993.7,1.3972]
[1742473945281,1.00354,1993.7,1993.6,3.2078]
[1742473945486,1.00354,1993.7,1993.6,4.605]
[1742473945680,1.00359,1993.6,1993.5,49.642]
[1742473945887,1.00359,1993.6,1993.5,51.0386]
[1742473946275,1.00359,1993.6,1993.5,46.371]
[1742473946689,1.00359,1993.6,1993.5,47.7676]
[1742473949584,1.67239,1993.4,1993.3,1.40412502]
[1742473950688,1.67239,1993.4,1993.3,0.00752502]
[1742473950888,1.67239,1993.4,1993.3,1.42472502]
[1742473951790,1.67239,1993.4,1993.3,0.00752502]
[1742473952191,1.67239,1993.4,1993.3,1.42232502]
[1742473952690,1.67239,1993.4,1993.3,0.00752502]
[1742473954293,0.6687,1993.4,1993.3,1.01126502]
[1742473954482,0.6687,1993.4,1993.3,2.42606502]
[1742473954892,1.67239,1993.4,1993.3,1.42232502]
[1742473955285,0.6687,1993.4,1993.3,2.42606502]
[1742473955592,0.6731,1993.5,1993.4,1.00369]
[1742473955789,1.67674,1993.5,1993.4,5.51839]
[1742473955992,1.67674,1993.5,1993.4,4.5147]
[1742473956394,1.67674,1993.5,1993.4,3.2078]
[1742473957092,1.67674,1993.5,1993.4,4.5147]
[1742473957698,1.00369,1993.4,1993.3,0.00752502]
[1742473957996,3.05179,1993.4,1993.3,1.29422502]
[1742473962299,3.05179,1993.4,1993.3,2.29796502]
[1742473962500,3.05179,1993.4,1993.3,1.29422502]
[1742473967907,3.05179,1993.4,1993.3,5.56396502]
[1742473967908,1.00369,1993.4,1993.3,5.56396502]
[1742473968103,1.00357,1993.7,1993.6,1.00357]
[1742473968303,1.00359,1993.6,1993.5,1.0036]
[1742473968511,1.00359,1993.6,1993.5,6.255]
[1742473970298,1.00359,1993.6,1993.5,5.2514]
[1742473970808,2.42787,1993.7,1993.6,1.00359]
[1742473971004,2.42787,1993.7,1993.6,2.38699]
[1742473971005,2.42784,1993.7,1993.6,2.38699]
[1742473971214,1.4243,1993.7,1993.6,2.38699]
[1742473971421,1.00354,1993.7,1993.6,4.5912]
[1742473971616,1.00351,1993.8,1993.7,1.00351]
[1742473971925,1.00349,1993.8,1993.7,3.03331]
[1742473972224,1.00349,1993.8,1993.7,2.0298]
[1742473972618,1.00349,1993.8,1993.7,5.2958]
[1742473973015,1.00349,1993.8,1993.7,6.29934]
[1742473976628,1.00349,1993.8,1993.7,2.38694]
[1742473978929,2.41297,1993.9,1993.8,1.00349]
[1742473979131,2.41297,1993.9,1993.8,2.42669]
[1742473980026,1.4095,1993.9,1993.8,2.42669]
[1742473980525,1.4095,1993.9,1993.6,8.97971]
[1742473980526,1.4095,1993.9,1993.6,6.4708]
[1742473980733,1.00354,1993.7,1993.6,8.89755]
[1742473980930,1.00352,1993.8,1993.7,1.00352]
[1742473981128,1.00354,1993.7,1993.6,5.63456]
[1742473981428,1.69424,1993.7,1993.6,5.63456]
[1742473982833,1.69424,1993.7,1993.6,4.21136]
[1742473983328,0.6907,1993.7,1993.6,4.21136]
[1742473983734,2.0656,1993.7,1993.6,4.21136]
[1742473985730,2.7785,1993.7,1993.6,4.21136]
[1742473987332,2.7785,1993.7,1993.6,1.00356]
[1742473987532,2.7785,1993.7,1993.6,4.21136]
[1742473987729,1.00342,1994.0,1993.6,4.21136]
[1742473987928,1.3322,1993.9,1993.8,4.21129]
[1742473988125,2.33564,1993.9,1993.8,1.3121]
[1742473988722,1.00349,1993.8,1993.7,1.00352]
[1742473988922,1.00349,1993.8,1993.6,5.52346]
[1742473988923,1.00354,1993.7,1993.6,5.52346]
[1742473989136,1.70764,1993.7,1993.6,5.52346]
[1742473989930,0.7041,1993.7,1993.6,5.52346]
[1742473990736,2.1077,1993.7,1993.6,5.52346]
[1742473991136,3.11124,1993.7,1993.6,5.52346]
[1742473994137,2.1077,1993.7,1993.6,5.52346]
[1742473995039,0.7135,1994.0,1993.6,4.5199]
[1742473995236,1.3054,1993.9,1993.8,1.00349]
[1742473995432,2.30886,1993.9,1993.8,1.3965]
[1742473995633,2.30886,1993.9,1993.8,2.39999]
[1742473997231,1.3054,1993.9,1993.8,2.39999]
[1742473997426,2.30884,1993.9,1993.8,2.39999]
[1742473999940,2.30884,1993.9,1993.8,1.3965]
[1742474000236,2.30884,1993.9,1993.8,2.39999]
[1742474001346,2.30884,1993.9,1993.8,1.3965]
[1742474001737,2.30884,1993.9,1993.8,2.39999]
[1742474003339,2.30884,1993.9,1993.8,3.75059]
[1742474007052,1.67453,1994.0,1993.9,1.00344]
[1742474007243,2.37343,1994.0,1993.9,1.4189]
[1742474008247,2.37343,1994.0,1993.9,2.42234]
[1742474008449,2.37343,1994.0,1993.9,1.4189]
[1742474009042,2.37343,1994.0,1993.9,2.42234]
[1742474009243,2.37343,1994.0,1993.9,1.4189]
[1742474010144,2.37343,1994.0,1993.9,2.42234]
[1742474011647,2.37343,1994.0,1993.9,1.4189]
[1742474011846,2.37343,1994.0,1993.9,2.42234]
[1742474012047,2.37343,1994.0,1993.9,1.4189]
[1742474012945,2.37343,1994.0,1993.9,2.42234]
[1742474014449,2.37343,1994.0,1993.9,1.4189]
[1742474014649,2.37343,1994.0,1993.9,2.42234]
[1742474018557,2.37343,1994.0,1993.9,1.4189]
[1742474018759,2.37343,1994.0,1993.8,2.35406]
[1742474018760,1.00344,1993.9,1993.8,1.00346]
[1742474018957,3.12014,1993.9,1993.8,1.00346]
[1742474019261,3.12014,1993.9,1993.8,2.42509]
[1742474019451,3.12014,1993.9,1993.8,1.4216]
[1742474019755,1.4064,1993.9,1993.8,2.42509]
[1742474019956,1.4064,1993.9,1993.8,3.78119]
[1742474020146,1.00341,1994.0,1993.9,1.00339]
[1742474020345,2.40981,1994.0,1993.9,2.42499]
[1742474020650,2.40981,1994.0,1993.9,1.4216]
[1742474021060,2.40981,1994.0,1993.9,2.42504]
[1742474022455,0.7122,1994.2,1994.1,1.00333]
[1742474022650,2.0213,1994.2,1994.1,4.21113]
[1742474023252,1.3091,1994.2,1994.1,4.21113]
[1742474023452,1.3091,1994.2,1994.1,4.88093]
[1742474023756,2.31238,1994.2,1994.1,4.88093]
[1742474024358,1.3091,1994.2,1994.1,4.88093]
[1742474024554,2.31238,1994.2,1994.1,4.88093]
[1742474025152,1.3091,1994.2,1994.1,4.88093]
[1742474025953,0.7038,1994.3,1994.2,1.00328]
[1742474026154,0.7038,1994.3,1994.2,2.37278]
[1742474026354,1.70703,1994.3,1994.2,3.01578]
[1742474026859,1.70703,1994.3,1994.2,2.37278]
[1742474027960,1.70703,1994.3,1994.2,1.3695]
[1742474028653,1.70703,1994.3,1994.2,2.37278]
[1742474030558,1.70703,1994.3,1994.2,1.3695]
[1742474031158,1.70703,1994.3,1994.2,2.37278]
[1742474031959,2.41428,1994.4,1994.3,1.00323]
[1742474032161,2.41428,1994.4,1994.3,2.30813]
[1742474032361,2.41428,1994.4,1994.3,1.3049]
[1742474033267,2.41428,1994.4,1994.3,2.30813]
[1742474033966,2.41428,1994.4,1994.3,1.3049]
[1742474034168,1.00323,1994.3,1994.2,1.00325]
[1742474034467,2.42783,1994.3,1994.2,2.30545]
[1742474034670,1.00328,1994.2,1994.1,4.2111]
[1742474034865,2.0799,1994.2,1994.1,4.2111]
[1742474036168,3.08318,1994.2,1994.1,4.2111]
[1742474036366,2.0799,1994.2,1994.1,4.8917]
[1742474037071,1.4246,1994.2,1994.1,4.8917]
[1742474037670,0.6443,1994.4,1994.3,1.00323]
[1742474037871,1.64751,1994.4,1994.3,1.00323]
[1742474038072,1.00323,1994.3,1994.2,3.04085]
[1742474038368,1.00323,1994.3,1994.2,1.67535]
[1742474039472,2.37923,1994.3,1994.2,3.04085]
[1742474042070,1.376,1994.3,1994.2,3.04085]
[1742474044179,2.37923,1994.3,1994.2,3.04085]
[1742474044978,2.37923,1994.3,1994.2,1.3655]
[1742474045971,1.00328,1994.2,1994.1,5.63283]
[1742474046279,2.40218,1994.2,1994.1,5.63283]
[1742474047279,1.3989,1994.2,1994.1,5.63283]
[1742474047780,2.50774,1994.6,1994.1,4.6295]
[1742474047978,1.00323,1994.3,1994.2,2.42494]
[1742474048882,1.69091,1994.4,1994.3,1.00323]
[1742474049083,1.69091,1994.4,1994.3,2.31053]
[1742474049283,1.69091,1994.4,1994.3,1.3073]
[1742474049884,1.69091,1994.4,1994.3,2.31053]
[1742474050684,1.00317,1994.5,1994.4,1.00315]
[1742474050881,1.00317,1994.5,1994.4,2.31045]
[1742474051080,1.6576,1994.6,1994.5,1.00313]
[1742474051291,1.6576,1994.6,1994.5,2.31043]
[1742474051588,1.65758,1994.6,1994.5,2.31043]
[1742474051981,1.65758,1994.6,1994.5,1.3073]
[1742474052490,1.65758,1994.6,1994.5,2.31043]
[1742474052790,1.65758,1994.6,1994.5,1.3073]
[1742474052992,1.65758,1994.6,1994.5,2.31043]
[1742474054088,1.65758,1994.6,1994.5,1.3073]
[1742474054394,1.00318,1994.4,1994.3,1.01071502]
[1742474054784,1.00318,1994.4,1994.3,5.54641502]
[1742474055790,1.00318,1994.4,1994.3,4.54322502]
[1742474055986,1.00318,1994.4,1994.3,0.00752502]
[1742474062489,1.00318,1994.4,1994.3,1.39192502]
[1742474065193,10.72389,1994.4,1993.7,3.2078]
[1742474065396,0.6545,1994.6,1993.4,11.84764056]
[1742474065397,1.00364,1993.5,1993.4,11.84764056]
[1742474068000,2.34624,1993.5,1993.4,13.20864056]
[1742474068197,2.34624,1993.5,1993.4,1.361]
[1742474068397,3.03194,1993.5,1993.4,1.361]
[1742474069603,2.34624,1993.5,1993.4,1.361]
[1742474069799,2.34624,1993.5,1993.4,2.0367]
[1742474070098,1.01114502,1993.6,1993.4,5.2445]
[1742474070303,1.01114502,1993.6,1993.5,1.361]
[1742474070901,2.42454502,1993.6,1993.5,1.361]
[1742474073305,1.01114502,1993.6,1993.5,1.361]
[1742474075200,1.71704502,1993.6,1993.5,1.361]
[1742474076312,2.42984502,1993.6,1993.5,1.361]
[1742474077603,3.78424502,1993.6,1993.5,1.361]
[1742474079103,3.78424502,1993.6,1993.4,3.2078]
[1742474079304,1.00369,1993.4,1993.3,0.00752502]
[1742474079907,2.35019,1993.4,1993.3,0.00752502]
[1742474080505,2.35019,1993.4,1993.3,0.68852502]
[1742474080907,2.35019,1993.4,1993.3,2.01432502]
[1742474083104,2.35019,1993.4,1993.3,1.33332502]
[1742474085610,2.35019,1993.4,1993.3,1.97952502]
[1742474085815,1.00369,1993.4,1993.3,5.18732502]
[1742474086004,1.00369,1993.5,1993.3,5.18732502]
[1742474086210,1.00369,1993.5,1993.4,1.9675]
[1742474090109,1.65529,1993.5,1993.4,1.3199]
[1742474090510,3.01369,1993.5,1993.4,1.3199]
[1742474093624,2.36209,1993.5,1993.4,2.32359]
[1742474093924,2.36209,1993.5,1993.4,1.3199]
[1742474094126,2.36209,1993.5,1993.4,2.32359]
[1742474094624,2.36209,1993.5,1993.4,1.3199]
[1742474095924,2.36209,1993.5,1993.4,2.32359]
[1742474096721,2.36209,1993.5,1993.4,1.3199]
[1742474097520,2.36209,1993.5,1993.4,2.32359]
[1742474098225,2.36209,1993.5,1993.4,1.3199]
[1742474098528,2.36209,1993.5,1993.4,2.32359]
[1742474098920,2.36209,1993.5,1993.4,1.3199]
[1742474101121,2.36209,1993.5,1993.4,2.32359]
[1742474101525,2.36209,1993.5,1993.4,3.02659]
[1742474101835,2.36209,1993.5,1993.4,2.0229]
[1742474104228,2.36209,1993.5,1993.4,1.3199]
[1742474104526,1.00369,1993.4,1993.3,3.21532502]
[1742474104732,3.72549,1993.4,1993.3,3.21532502]
[1742474105630,6.97849,1993.4,1993.3,3.21532502]
[1742474106332,6.97849,1993.4,1993.3,0.00752502]
[1742474108031,6.97849,1993.4,1993.3,0.00251336]
[1742474108325,5.01901,1993.2,1992.4,2.89839241]
[1742474108530,5.01901,1993.2,1992.4,3.24771241]
[1742474108531,1.00414,1992.5,1992.4,3.24771241]
[1742474108727,1.00419,1992.4,1992.3,0.6945]
[1742474108921,1.00424,1992.3,1992.2,11.84764056]
[1742474109120,4.21204,1992.3,1992.2,11.84764056]
[1742474109334,2.38794,1992.3,1992.2,11.84764056]
[1742474109531,1.00429,1992.2,1992.1,63.15470558]
[1742474109925,1.00429,1992.2,1992.1,59.90170558]
[1742474110328,1.00429,1992.2,1992.1,58.89736558]
[1742474111028,1.00429,1992.2,1992.1,59.90170558]
[1742474111436,1.00429,1992.2,1992.1,58.89736558]
[1742474112636,1.00429,1992.2,1992.1,47.04972502]
[1742474113338,1.00429,1992.2,1992.1,48.05406502]
[1742474114942,2.38796,1992.3,1992.2,1.00429]
[1742474115238,0.00752502,1992.4,1992.3,1.00424]
[1742474115641,0.00752502,1992.4,1992.3,41.80424]
[1742474118953,0.00752502,1992.4,1992.3,1.00424]
[1742474119348,1.3325,1992.7,1992.6,1.00409]
[1742474119349,1.00408,1992.7,1992.6,1.00409]
[1742474120252,1.00409,1992.6,1992.5,1.7083]
[1742474121455,1.36342502,1992.7,1992.6,1.00409]
[1742474121654,1.36342502,1992.7,1992.5,1.7083]
[1742474121856,1.00414,1992.5,1992.4,0.6798]
[1742474122049,7.13024,1992.6,1992.1,47.02802502]
[1742474122256,1.00428,1992.3,1992.2,1.00428]
[1742474123946,1.00429,1992.2,1992.1,46.38152502]
[1742474124149,1.68589,1992.2,1992.1,46.38152502]
[1742474124351,1.00426,1992.3,1992.2,1.00429]
[1742474124546,2.35773,1992.4,1992.3,1.00424]
[1742474124752,1.00423,1992.4,1992.3,1.00424]
[1742474126149,1.00424,1992.3,1992.2,1.65076]
[1742474127460,2.31568,1992.5,1992.4,1.00419]
[1742474127661,2.37013,1992.6,1992.5,1.00414]
[1742474127960,2.6775,1992.6,1992.5,1.00414]
[1742474128160,1.3115,1992.6,1992.5,1.00414]
[1742474128660,2.31559,1992.6,1992.5,1.00414]
[1742474128859,2.31559,1992.6,1992.5,2.37034]
[1742474130852,2.31559,1992.6,1992.5,1.3662]
[1742474132461,2.31559,1992.6,1992.5,2.37034]
[1742474133357,1.3115,1992.6,1992.5,3.07664]
[1742474133556,1.00409,1992.6,1992.5,3.07664]
[1742474133762,2.30018502,1992.7,1992.6,1.00409]
[1742474133964,1.01158502,1992.7,1992.6,2.31259]
[1742474137953,0.00752502,1992.7,1992.6,2.31259]
[1742474138161,1.01156502,1992.7,1992.6,2.31259]
[1742474138360,1.38762502,1992.7,1992.6,2.31259]
[1742474139153,2.39166502,1992.7,1992.6,2.31259]
[1742474145676,2.39166502,1992.7,1992.6,1.3085]
[1742474146068,1.00414,1992.5,1992.4,1.00414]
[1742474146272,1.00419,1992.4,1992.3,5.53413]
[1742474146471,2.40359,1992.4,1992.3,5.53413]
[1742474146768,2.40359,1992.4,1992.3,3.2078]
[1742474146974,2.40359,1992.4,1992.1,50.29562502]
[1742474146975,1.00429,1992.2,1992.1,51.01692502]
[1742474147274,1.00429,1992.2,1992.1,47.76392502]
[1742474147471,1.00429,1992.2,1992.1,46.38152502]
[1742474147778,2.37099,1992.2,1992.1,46.38152502]
[1742474147978,2.37099,1992.2,1992.1,48.76826502]
[1742474148776,2.37099,1992.2,1992.1,47.76392502]
[1742474148970,2.37099,1992.2,1992.1,48.76826502]
[1742474149978,2.37099,1992.2,1992.1,47.76392502]
[1742474150269,2.37099,1992.2,1992.1,46.38152502]
[1742474150679,3.72529,1992.2,1992.1,46.38152502]
[1742474151866,3.72529,1992.2,1992.1,47.38586502]
[1742474152177,3.72529,1992.2,1992.1,46.38152502]
[1742474152573,3.72529,1992.2,1992.1,47.79432502]
[1742474154282,3.72529,1992.2,1992.1,46.38152502]
[1742474154887,3.72529,1992.2,1992.1,47.79432502]
[1742474159482,3.72529,1992.2,1992.1,46.38152502]
[1742474160885,3.72529,1992.2,1992.1,47.70592502]
[1742474163185,3.72529,1992.2,1992.1,48.71026502]
[1742474164576,3.72529,1992.2,1992.1,47.70592502]
[1742474167184,3.72529,1992.2,1992.1,49.36156502]
[1742474167392,3.72529,1992.2,1992.1,48.35712502]
[1742474168492,3.72529,1992.2,1992.1,49.04122502]
[1742474169387,3.72529,1992.2,1992.1,48.39002502]
[1742474169587,3.72529,1992.2,1992.1,46.38152502]
[1742474169782,3.72529,1992.2,1992.1,0.00752502]
[1742474169783,6.97929,1992.2,1992.1,0.00752502]
[1742474170786,6.97929,1992.2,1992.1,1.35622502]
[1742474173089,6.97929,1992.2,1992.1,0.00752502]
[1742474173389,6.97929,1992.2,1991.9,1.3487]
[1742474173390,1.00449,1992.0,1991.9,1.3487]
[1742474173589,1.00459,1991.8,1991.7,0.6958]
[1742474173791,1.00459,1991.8,1991.7,1.3487]
[1742474173792,4.21239,1991.8,1991.7,1.3487]
[1742474174189,6.18939,1991.8,1991.7,1.3487]
[1742474174793,2.98159,1991.8,1991.7,1.3487]
[1742474174995,5.54509,1991.8,1991.7,2.35334]
[1742474175196,2.33729,1991.8,1991.7,2.35334]
[1742474175696,0.686,1991.9,1991.8,1.00459]
[1742474175892,1.00454,1991.9,1991.8,3.04399]
[1742474176100,3.2078,1992.0,1991.9,1.00454]
[1742474176292,4.21229,1992.0,1991.9,3.06014]
[1742474176590,3.2078,1992.0,1991.9,3.06014]
[1742474176897,4.21229,1992.0,1991.9,2.0556]
[1742474177398,4.21229,1992.0,1991.9,3.06014]
[1742474177597,5.55699,1992.0,1991.9,3.06014]
[1742474177992,5.55699,1992.0,1991.9,2.0556]
[1742474178193,5.55699,1992.0,1991.9,3.06014]
[1742474178395,4.5525,1992.0,1991.9,3.06014]
[1742474179085,5.55699,1992.0,1991.9,3.06014]
[1742474179886,5.55699,1992.0,1991.9,1.3677]
[1742474180997,5.55699,1992.0,1991.7,1.7064]
[1742474180998,1.00459,1991.8,1991.7,1.7064]
[1742474181197,3.13818,1991.9,1991.8,1.00459]
[1742474182201,3.13818,1991.9,1991.8,2.34599]
[1742474183502,3.13818,1991.9,1991.8,1.3414]
[1742474185104,3.13818,1991.9,1991.8,2.34599]
[1742474185297,3.13818,1991.9,1991.8,1.3414]
[1742474185493,3.13818,1991.9,1991.8,2.34599]
[1742474185801,3.13818,1991.9,1991.8,1.3414]
[1742474186402,3.13818,1991.9,1991.8,2.34599]
[1742474186901,3.13818,1991.9,1991.8,1.3414]
[1742474190396,3.13818,1991.9,1991.8,2.34599]
[1742474190595,3.13818,1991.9,1991.8,1.3414]
[1742474190998,3.13818,1991.9,1991.8,2.34599]
[1742474191195,2.42898,1991.9,1991.8,2.34599]
[1742474191398,2.42898,1991.9,1991.8,1.3414]
[1742474191905,1.00458,1991.9,1991.8,2.34599]
[1742474192505,1.00458,1991.9,1991.8,1.9865]
[1742474193305,1.00458,1991.9,1991.8,2.99109]
[1742474196010,3.8563,1992.1,1991.8,2.99109]
[1742474196011,1.00453,1992.0,1991.9,1.00451]
[1742474196202,1.00453,1992.0,1991.9,2.31461]
[1742474198408,2.39873,1992.0,1991.9,1.3101]
[1742474198912,3.08483,1992.0,1991.9,2.31464]
[1742474199913,2.39873,1992.0,1991.9,2.31464]
[1742474201014,3.2078,1992.1,1992.0,1.00449]
[1742474201208,3.2078,1992.3,1992.2,1.00439]
[1742474201706,3.2078,1992.3,1992.2,41.80439]
[1742474201905,4.87360502,1992.7,1992.6,1.00419]
[1742474202115,3.21532502,1992.7,1992.6,1.00419]
[1742474203000,4.21946502,1992.7,1992.6,1.00419]
[1742474204206,5.51356502,1992.7,1992.6,1.00419]
[1742474204806,5.51356502,1992.7,1992.6,2.30219]
[1742474206114,1.30162502,1992.7,1992.6,2.30219]
[1742474206313,0.00752502,1992.7,1992.6,2.30219]
[1742474215018,0.67962502,1992.7,1992.6,2.30219]
[1742474215613,0.00752502,1992.7,1992.6,2.30219]
[1742474220918,3.2078,1993.1,1992.6,8.81894]
[1742474221121,0.6638,1993.2,1993.1,1.00394]
[1742474221328,3.2078,1993.5,1993.4,1.00379]
[1742474221525,3.2078,1993.5,1993.2,2.50964]
[1742474221526,1.3449,1993.6,1993.5,1.00374]
[1742474221918,4.21133,1994.0,1993.9,1.00354]
[1742474222115,3.2078,1994.0,1993.9,1.00354]
[1742474222318,4.21129,1994.0,1993.9,1.00354]
[1742474223120,4.87509,1994.0,1993.9,1.00354]
[1742474223425,1.00354,1993.9,1993.8,1.3476]
[1742474223626,1.00354,1993.9,1993.8,2.35115]
[1742474224227,4.87513,1994.0,1993.9,1.00354]
[1742474224527,3.8716,1994.0,1993.9,2.35114]
[1742474225320,0.6638,1994.0,1993.9,2.35114]
[1742474225519,2.039,1994.0,1993.9,2.35114]
[1742474225721,3.04249,1994.0,1993.9,2.35114]
[1742474227233,2.6919,1994.0,1993.9,2.35114]
[1742474227729,3.69539,1994.0,1993.9,2.35114]
[1742474228525,3.69539,1994.0,1993.9,1.00354]
[1742474228731,1.00354,1993.9,1993.8,1.37740507]
[1742474228928,5.57754,1993.9,1993.8,1.00354]
[1742474229129,1.00366,1993.7,1993.6,1.00364]
[1742474229532,1.00369,1993.6,1993.5,2.413]
[1742474229831,2.0411,1993.6,1993.5,2.413]
[1742474230928,1.00354,1993.9,1993.8,1.00359]
[1742474231233,1.3662,1993.9,1993.8,1.00359]
[1742474233328,0.6638,1994.0,1993.9,1.00354]
[1742474233529,5.56336502,1994.1,1994.0,1.00349]
[1742474234134,5.56336502,1994.1,1994.0,2.38939]
[1742474235027,1.00349,1994.0,1993.9,1.0035]
[1742474235230,3.04109,1994.0,1993.9,2.2913]
[1742474236134,2.0376,1994.0,1993.9,2.2913]
[1742474236635,3.04109,1994.0,1993.9,2.2913]
[1742474237336,2.0376,1994.0,1993.9,2.2913]
[1742474238034,2.0376,1994.0,1993.9,2.9994]
[1742474238233,0.00752502,1994.1,1994.0,1.00349]
[1742474238534,0.00752502,1994.1,1994.0,5.65779]
[1742474238730,0.00752502,1994.1,1994.0,6.31599]
[1742474239131,3.2078,1994.4,1994.3,1.00333]
[1742474239330,4.5074,1994.4,1994.3,1.00333]
[1742474239834,4.5074,1994.4,1994.2,5.3624]
[1742474239835,1.3214,1994.5,1994.4,1.00328]
[1742474240436,1.3214,1994.5,1994.4,41.80328]
[1742474240640,5.53243,1994.5,1994.4,41.80328]
[1742474240942,5.8633,1994.5,1994.4,41.80328]
[1742474241840,3.867,1994.5,1994.4,41.80328]
[1742474242029,3.867,1994.5,1994.4,42.44738]
[1742474243138,1.3341,1994.6,1994.5,1.00323]
[1742474243338,3.2078,1994.8,1994.5,48.3883]
[1742474243639,3.66956,1994.9,1994.8,1.00308]
[1742474243834,1.0031,1994.8,1994.6,45.3465]
[1742474244039,1.0031,1994.8,1994.7,2.29959]
[1742474244530,1.0031,1994.8,1994.7,1.2965]
[1742474244735,1.00313,1994.7,1994.6,44.05]
[1742474245041,1.00312,1994.8,1994.7,1.00311]
[1742474245838,1.00312,1994.8,1994.7,2.29961]
[1742474247841,1.00312,1994.8,1994.7,1.2965]
[1742474248041,1.00312,1994.8,1994.7,2.29963]
[1742474248642,1.00312,1994.8,1994.7,1.2965]
[1742474248836,1.00318,1994.7,1994.6,1.00316]
[1742474249037,4.21098,1994.7,1994.6,1.00316]
[1742474249731,3.2078,1994.7,1994.6,1.00316]
[1742474249941,3.2078,1994.7,1994.6,2.33436]
[1742474251632,4.21093,1994.7,1994.6,2.33436]
[1742474253645,1.00313,1994.7,1994.6,2.33436]
[1742474254835,1.00313,1994.7,1994.6,1.3312]
[1742474255331,1.00313,1994.7,1994.6,2.33438]
[1742474256738,4.21092,1994.8,1994.7,1.00313]
[1742474256933,4.21092,1994.8,1994.7,1.3887]
[1742474257134,4.21092,1994.8,1994.7,2.39183]
[1742474257537,4.21092,1994.8,1994.7,1.3887]
[1742474257843,1.00318,1994.6,1994.5,49.61652502]
[1742474258044,1.00318,1994.6,1994.5,47.75622502]
[1742474258738,4.87438,1994.6,1994.5,46.36752502]
[1742474258937,4.87438,1994.6,1994.5,0.00752502]
[1742474259133,4.87438,1994.6,1994.2,1.3908]